bitfinex/quotes_BTCUSD_20250115
["timestamp","ask_amount","ask_price","bid_price","bid_amount"]
[1736975408573,0.00175524,99734.0,99733.0,0.48796192]
[1736975409121,0.00175524,99734.0,99733.0,0.48176192]
[1736975409383,0.00175524,99734.0,99733.0,0.48076192]
[1736975409618,0.00175524,99734.0,99733.0,0.47776192]
[1736975409845,0.00175524,99734.0,99733.0,0.45876192]
[1736975410035,0.00175524,99734.0,99733.0,0.30876192]
[1736975410940,0.00175524,99734.0,99733.0,0.31176192]
[1736975410941,0.02010921,99734.0,99733.0,0.31176192]
[1736975411137,0.02010921,99734.0,99733.0,0.31076192]
[1736975411340,0.02010921,99734.0,99733.0,0.31176192]
[1736975412445,0.02010921,99734.0,99733.0,0.31076192]
[1736975412855,0.02010921,99734.0,99733.0,0.30576192]
[1736975413088,0.02010921,99734.0,99733.0,0.30776192]
[1736975413499,0.00175524,99734.0,99733.0,0.30776192]
[1736975416720,0.00175524,99734.0,99733.0,0.30576192]
[1736975417280,0.00175524,99734.0,99733.0,0.31076192]
[1736975417410,0.00175524,99734.0,99733.0,0.30576192]
[1736975417610,0.00175524,99734.0,99733.0,0.30976192]
[1736975417829,0.00175524,99734.0,99733.0,0.30876192]
[1736975418041,0.00175524,99734.0,99733.0,0.31076192]
[1736975418682,0.00175524,99734.0,99733.0,0.30876192]
[1736975418889,0.00175524,99734.0,99733.0,0.30976192]
[1736975419513,0.00175524,99734.0,99733.0,0.55906192]
[1736975419711,0.00175524,99734.0,99733.0,0.65949633]
[1736975420332,2.4e-07,99734.0,99733.0,0.65949633]
[1736975420743,2.4e-07,99734.0,99733.0,0.55949633]
[1736975420943,2.4e-07,99734.0,99733.0,0.65949633]
[1736975421114,2.4e-07,99734.0,99733.0,0.69574051]
[1736975421320,2.4e-07,99734.0,99733.0,0.65949633]
[1736975421747,2.4e-07,99734.0,99733.0,0.55949633]
[1736975421966,2.4e-07,99734.0,99733.0,0.56526192]
[1736975422210,2.4e-07,99734.0,99733.0,0.56569633]
[1736975422423,2.4e-07,99734.0,99733.0,0.46596192]
[1736975423667,2.4e-07,99734.0,99733.0,0.45976192]
[1736975427415,2.4e-07,99734.0,99733.0,0.54979873]
[1736975428240,2.4e-07,99734.0,99733.0,0.55159381]
[1736975429442,2.4e-07,99734.0,99733.0,0.461557]
[1736975430691,2.4e-07,99734.0,99733.0,0.20733008]
[1736975431124,0.07890024,99734.0,99733.0,0.20733008]
[1736975438865,2.4e-07,99734.0,99733.0,0.20733008]
[1736975440078,2.4e-07,99734.0,99733.0,0.00679508]
[1736975440293,0.14906583,99734.0,99733.0,0.00679508]
[1736975440494,0.23071934,99734.0,99733.0,0.00679508]
[1736975440643,0.22946583,99734.0,99733.0,0.00679508]
[1736975440849,0.22946583,99734.0,99733.0,0.00579508]
[1736975441083,0.23234491,99734.0,99733.0,0.00579508]
[1736975442367,0.23234491,99734.0,99733.0,0.00179508]
[1736975442593,0.33657183,99734.0,99733.0,0.00179508]
[1736975442809,0.34747412,99734.0,99733.0,0.00179508]
[1736975443642,0.34447412,99734.0,99733.0,0.00179508]
[1736975443846,0.34647412,99734.0,99733.0,0.00179508]
[1736975444098,0.49647412,99734.0,99733.0,0.00179508]
[1736975444241,0.49447412,99734.0,99733.0,0.00179508]
[1736975444606,0.22584491,99708.0,99688.0,0.200624]
[1736975444738,0.22584491,99708.0,99707.0,0.00194643]
[1736975446757,0.09944491,99720.0,99707.0,0.00194643]
[1736975446973,0.01039743,99725.0,99724.0,0.200553]
[1736975447171,0.01039743,99725.0,99724.0,0.2206083]
[1736975447376,0.08797046,99729.0,99724.0,0.2206083]
[1736975447377,0.08797046,99729.0,99728.0,0.200545]
[1736975448011,0.08797046,99729.0,99728.0,0.30477192]
[1736975448212,0.17668253,99734.0,99728.0,0.30477192]
[1736975448213,0.00048,99734.0,99733.0,0.200535]
[1736975448461,0.00048,99734.0,99733.0,0.38730211]
[1736975448667,0.00048,99734.0,99733.0,0.4029508]
[1736975449846,0.00348,99734.0,99733.0,0.4029508]
[1736975450167,0.00148,99734.0,99733.0,0.4029508]
[1736975451238,0.00148,99734.0,99733.0,0.41405924]
[1736975452068,0.00348,99734.0,99733.0,0.41405924]
[1736975457162,0.00048,99734.0,99733.0,0.41405924]
[1736975460247,0.00048,99734.0,99733.0,0.41385732]
[1736975464369,0.0013348,99734.0,99733.0,0.41385732]
[1736975464719,0.0013348,99734.0,99733.0,0.33185732]
[1736975465577,0.0023348,99734.0,99733.0,0.33185732]
[1736975465771,0.0013348,99734.0,99733.0,0.33185732]
[1736975466208,0.0023348,99734.0,99733.0,0.2276304]
[1736975467008,0.0033348,99734.0,99733.0,0.2276304]
[1736975475354,0.0033348,99734.0,99733.0,0.22942548]
[1736975477099,8e-07,99734.0,99733.0,0.62840749]
[1736975477310,8e-07,99734.0,99733.0,0.72840749]
[1736975477750,0.00251966,99747.0,99746.0,0.200509]
[1736975477957,0.00251966,99747.0,99746.0,0.32479122]
[1736975479036,0.00256995,99747.0,99746.0,0.32479122]
[1736975483093,0.00256995,99747.0,99746.0,0.33562465]
[1736975485584,0.00256995,99747.0,99746.0,0.33662465]
[1736975485761,0.00356995,99747.0,99746.0,0.41372465]
[1736975486189,0.00356995,99747.0,99746.0,0.41272465]
[1736975486391,0.00356995,99747.0,99746.0,0.56272465]
[1736975487008,0.00256995,99747.0,99746.0,0.56272465]
[1736975487370,0.00256995,99747.0,99746.0,0.56372465]
[1736975487568,0.0004,99769.0,99768.0,0.277565]
[1736975487834,0.00045029,99769.0,99768.0,0.29375388]
[1736975488009,0.00045029,99769.0,99768.0,0.21665388]
[1736975489034,0.00445029,99769.0,99768.0,0.21665388]
[1736975489904,0.00445029,99769.0,99768.0,0.01618888]
[1736975492152,0.08789387,99772.0,99768.0,0.01618888]
[1736975492353,0.08789387,99772.0,99766.0,0.200467]
[1736975492354,0.08789387,99772.0,99769.0,0.0200553]
[1736975492547,0.08789387,99772.0,99770.0,0.200461]
[1736975493585,0.09089387,99772.0,99770.0,0.200461]
[1736975494598,0.09189387,99772.0,99770.0,0.200461]
[1736975494809,0.08889387,99772.0,99770.0,0.200461]
[1736975495069,0.08789387,99772.0,99771.0,0.01618888]
[1736975495215,0.08889387,99772.0,99771.0,0.01618888]
[1736975495410,0.09089387,99772.0,99771.0,0.01618888]
[1736975495889,0.08889387,99772.0,99771.0,0.01618888]
[1736975496083,0.08789387,99772.0,99771.0,0.01618888]
[1736975497291,0.08989387,99772.0,99771.0,0.01618888]
[1736975497494,0.08989387,99772.0,99766.0,0.200467]
[1736975497689,0.08989387,99772.0,99766.0,0.400935]
[1736975498297,0.08789387,99772.0,99771.0,0.200459]
[1736975498498,0.08889387,99772.0,99771.0,0.200459]
[1736975498919,0.08974837,99772.0,99769.0,0.200463]
[1736975499099,0.09074837,99772.0,99769.0,0.200463]
[1736975499436,0.08974837,99772.0,99769.0,0.200463]
[1736975499663,0.09074837,99772.0,99769.0,0.200463]
[1736975500276,0.09174837,99772.0,99769.0,0.200463]
[1736975500642,0.09074837,99772.0,99769.0,0.200463]
[1736975501064,0.09274837,99772.0,99769.0,0.200463]
[1736975501466,0.08789387,99771.0,99769.0,0.200463]
[1736975502650,0.08889387,99771.0,99769.0,0.400926]
[1736975502906,0.08989387,99771.0,99769.0,0.400926]
[1736975503416,0.002,99771.0,99769.0,0.400926]
[1736975503792,0.002,99771.0,99769.0,0.200463]
[1736975504006,0.08989387,99771.0,99769.0,0.200463]
[1736975505046,0.002,99771.0,99769.0,0.200463]
[1736975505250,0.08989387,99771.0,99769.0,0.200463]
[1736975506563,0.002,99771.0,99769.0,0.200463]
[1736975506807,0.08989387,99771.0,99769.0,0.200463]
[1736975507958,0.002,99771.0,99769.0,0.200463]
[1736975508546,0.08574837,99771.0,99769.0,0.400926]
[1736975509176,0.08574837,99773.0,99769.0,0.400926]
[1736975509554,0.08574837,99771.0,99769.0,0.400926]
[1736975510608,0.08774837,99773.0,99769.0,0.400926]
[1736975510818,0.08574837,99771.0,99769.0,0.40272045]
[1736975511256,0.08674837,99771.0,99769.0,0.40272045]
[1736975512034,0.001,99771.0,99769.0,0.40272045]
[1736975512235,0.001,99771.0,99770.0,0.0808]
[1736975513193,0.0008545,99772.0,99770.0,0.0808]
[1736975513402,0.0008545,99772.0,99771.0,0.200459]
[1736975515353,0.0018545,99772.0,99771.0,0.200459]
[1736975517838,0.0018545,99772.0,99771.0,0.30468592]
[1736975518039,0.0018545,99772.0,99771.0,0.55848592]
[1736975519286,0.0018545,99772.0,99771.0,0.285259]
[1736975519531,0.0018545,99772.0,99771.0,0.281259]
[1736975519773,0.0018545,99772.0,99771.0,0.285259]
[1736975520051,0.0018545,99772.0,99771.0,0.38948592]
[1736975520537,0.0018545,99772.0,99771.0,0.38548592]
[1736975520807,0.0018545,99772.0,99771.0,0.4217301]
[1736975521034,0.0008545,99772.0,99771.0,0.38548592]
[1736975521289,0.0008545,99772.0,99771.0,0.38648592]
[1736975521775,0.0008545,99772.0,99771.0,0.38548592]
[1736975522210,0.0008545,99772.0,99771.0,0.38648592]
[1736975522481,0.0008545,99772.0,99771.0,0.57036673]
[1736975522740,0.0008545,99772.0,99771.0,0.56636673]
[1736975522992,0.0008545,99772.0,99771.0,0.56836673]
[1736975523715,0.0008545,99772.0,99771.0,0.56636673]
[1736975523919,0.0008545,99772.0,99771.0,0.38948592]
[1736975524783,0.0008545,99772.0,99771.0,0.39148592]
[1736975525117,0.0008545,99772.0,99771.0,0.38548592]
[1736975525609,0.0008545,99772.0,99771.0,0.38648592]
[1736975526070,0.0008545,99772.0,99771.0,0.38848592]
[1736975527120,0.00072538,99799.0,99797.0,0.0808]
[1736975527328,0.0012283,99799.0,99798.0,0.30463092]
[1736975530918,0.0022283,99799.0,99798.0,0.30463092]
[1736975531304,0.0022283,99799.0,99798.0,0.31546634]
[1736975533754,0.0022283,99799.0,99798.0,0.43846634]
[1736975533986,0.0022283,99799.0,99798.0,0.45850842]
[1736975534813,0.0012283,99799.0,99798.0,0.45850842]
[1736975535021,0.0012283,99799.0,99798.0,0.46050842]
[1736975535447,0.0012283,99799.0,99798.0,0.69630842]
[1736975535661,0.0012283,99799.0,99798.0,0.69030842]
[1736975535873,0.0012283,99799.0,99798.0,0.69230842]
[1736975536084,0.0020828,99799.0,99798.0,0.74280842]
[1736975536295,0.0020828,99799.0,99798.0,0.61580842]
[1736975536499,0.0020828,99799.0,99798.0,0.62596842]
[1736975537258,0.0020828,99799.0,99798.0,0.62396842]
[1736975537434,0.0020828,99799.0,99798.0,0.61780842]
[1736975537655,0.0020828,99799.0,99798.0,0.62396842]
[1736975537863,0.0020828,99799.0,99798.0,0.61996842]
[1736975538076,0.0020828,99799.0,99798.0,0.62196842]
[1736975538421,0.0020828,99799.0,99798.0,0.61996842]
[1736975538622,0.0020828,99799.0,99798.0,0.62696842]
[1736975538827,0.0020828,99799.0,99798.0,0.74496842]
[1736975539255,0.0020828,99799.0,99798.0,0.74896842]
[1736975539460,0.0020828,99799.0,99798.0,0.74496842]
[1736975539670,0.0020828,99799.0,99798.0,0.75196842]
[1736975539895,0.001,99800.0,99799.0,0.25]
[1736975540144,0.00115079,99800.0,99799.0,0.46777855]
[1736975540381,0.00187598,99800.0,99799.0,0.46777855]
[1736975541359,0.00072514,99817.0,99816.0,0.023]
[1736975541569,0.00072514,99817.0,99816.0,0.27722692]
[1736975541998,0.00072514,99817.0,99816.0,0.45352692]
[1736975542186,0.00072514,99817.0,99816.0,0.35352692]
[1736975542601,0.00072514,99817.0,99816.0,0.45352692]
[1736975542801,0.00072514,99817.0,99816.0,0.33052692]
[1736975542961,0.00072514,99817.0,99816.0,0.34168692]
[1736975543356,0.00072514,99817.0,99816.0,0.3458103]
[1736975543563,0.00072514,99817.0,99816.0,0.3519703]
[1736975543764,0.00072514,99817.0,99816.0,0.2776703]
[1736975543966,0.00072514,99817.0,99816.0,0.1215103]
[1736975544288,0.00072514,99817.0,99816.0,0.1145103]
[1736975544441,0.00072514,99817.0,99816.0,0.1195103]
[1736975544642,0.00072514,99817.0,99816.0,0.1215103]
[1736975544894,0.00072514,99817.0,99816.0,0.1165103]
[1736975545098,0.00072514,99817.0,99816.0,0.01228338]
[1736975545650,0.00072514,99817.0,99816.0,0.01328338]
[1736975545824,0.00072514,99817.0,99816.0,0.01128338]
[1736975546175,0.00072514,99817.0,99816.0,0.01328338]
[1736975546749,0.08647351,99817.0,99816.0,0.002]
[1736975546950,0.08647351,99817.0,99816.0,0.003]
[1736975547406,0.08647351,99817.0,99816.0,0.001]
[1736975547615,0.08574837,99816.0,99815.0,0.200369]
[1736975547824,0.08574837,99816.0,99815.0,0.30459592]
[1736975548029,0.08574837,99816.0,99815.0,0.200369]
[1736975550642,0.08674837,99816.0,99815.0,0.200369]
[1736975551173,0.08574837,99816.0,99815.0,0.200369]
[1736975551369,0.08674837,99816.0,99815.0,0.200369]
[1736975551614,0.08674837,99816.0,99815.0,0.23661318]
[1736975551817,0.08674837,99816.0,99815.0,0.200369]
[1736975552754,0.08574837,99814.0,99811.0,0.01024555]
[1736975552956,0.08574837,99814.0,99807.0,0.200385]
[1736975554489,0.08574837,99814.0,99807.0,0.400771]
[1736975554844,0.08574837,99814.0,99809.0,0.200382]
[1736975555482,0.08574837,99814.0,99809.0,0.400764]
[1736975556353,0.08574837,99814.0,99809.0,0.399764]
[1736975557206,0.08574837,99814.0,99809.0,0.199382]
[1736975557836,0.08574837,99814.0,99809.0,0.20992428]
[1736975559583,0.08574837,99813.0,99809.0,0.20992428]
[1736975559779,0.08574837,99813.0,99809.0,0.41030628]
[1736975560403,0.08574837,99813.0,99810.0,0.20038]
[1736975561007,0.049,99812.0,99809.0,0.01154228]
[1736975561156,0.08574837,99810.0,99809.0,0.01154228]
[1736975561355,0.08574837,99810.0,99809.0,0.01054228]
[1736975561558,0.08574837,99806.0,99801.0,0.200398]
[1736975561768,0.08574837,99806.0,99800.0,0.2004]
[1736975562169,0.08574837,99806.0,99800.0,0.21091048]
[1736975562783,0.08574837,99806.0,99803.0,0.200394]
[1736975563908,0.08574837,99804.0,99803.0,0.200394]
[1736975564155,0.08574837,99804.0,99803.0,0.201394]
[1736975564556,0.08574837,99804.0,99803.0,0.200394]
[1736975564967,0.08574837,99803.0,99800.0,0.01051048]
[1736975565166,0.00125253,99811.0,99795.0,0.200408]
[1736975565167,0.08574837,99801.0,99795.0,0.200408]
[1736975565367,0.08574837,99800.0,99795.0,0.200408]
[1736975565604,0.08574837,99800.0,99796.0,0.400816]
[1736975565847,0.08574837,99800.0,99798.0,0.200404]
[1736975566532,0.08574837,99804.0,99803.0,0.200394]
[1736975568097,0.08774837,99804.0,99803.0,0.200394]
[1736975569460,0.08574837,99804.0,99803.0,0.200394]
[1736975570647,0.08774837,99804.0,99803.0,0.200394]
[1736975571506,0.08774837,99804.0,99798.0,0.200404]
[1736975571738,0.08574837,99803.0,99802.0,0.200396]
[1736975571939,0.08574837,99803.0,99796.0,0.200408]
[1736975572146,0.08574837,99800.0,99796.0,0.200408]
[1736975572295,0.16254837,99800.0,99795.0,0.01062687]
[1736975572493,0.00125266,99799.0,99796.0,0.02110459]
[1736975572701,0.16254837,99800.0,99796.0,0.02110459]
[1736975573672,0.08574837,99797.0,99796.0,0.02110459]
[1736975574087,0.08574837,99788.0,99787.0,0.200426]
[1736975574694,0.08574837,99788.0,99785.0,0.200429]
[1736975574869,0.08574837,99788.0,99787.0,0.200426]
[1736975575224,0.08574837,99788.0,99786.0,0.01098465]
[1736975575424,0.08574837,99788.0,99786.0,0.00050292]
[1736975575638,0.08574837,99787.0,99786.0,0.00050292]
[1736975575845,0.16380119,99787.0,99786.0,0.00050292]
[1736975577068,0.16680119,99787.0,99786.0,0.00050292]
[1736975577633,0.16380119,99787.0,99786.0,0.00050292]
[1736975578136,0.17380119,99787.0,99786.0,0.00150292]
[1736975583891,0.09574837,99787.0,99786.0,0.00150292]
[1736975584495,0.01,99787.0,99786.0,0.00150292]
[1736975585203,0.09574837,99787.0,99786.0,0.00150292]
[1736975585355,0.01,99787.0,99786.0,0.00150292]
[1736975586336,0.09574837,99787.0,99786.0,0.00150292]
[1736975586839,0.01,99787.0,99786.0,0.00150292]
[1736975586994,0.09574837,99787.0,99786.0,0.00150292]
[1736975587206,0.08574837,99787.0,99786.0,0.00050292]
[1736975587418,0.09174837,99787.0,99786.0,0.00050292]
[1736975588088,0.09174837,99787.0,99786.0,0.00229821]
[1736975588521,0.006,99787.0,99786.0,0.00229821]
[1736975588754,0.08974837,99787.0,99786.0,0.00229821]
[1736975589157,0.08774837,99787.0,99786.0,0.00229821]
[1736975589601,0.09074837,99787.0,99786.0,0.00229821]
[1736975595728,0.005,99787.0,99786.0,0.05019821]
[1736975595928,0.005,99787.0,99786.0,0.12779821]
[1736975596404,0.09074837,99787.0,99786.0,0.12779821]
[1736975596607,0.08874837,99787.0,99786.0,0.12779821]
[1736975596909,0.08574837,99787.0,99786.0,0.12879821]
[1736975597113,0.08674837,99787.0,99786.0,0.12879821]
[1736975597317,0.08674837,99787.0,99786.0,0.07989821]
[1736975598231,0.08674837,99787.0,99786.0,0.09042361]
[1736975599616,0.001,99787.0,99786.0,0.09042361]
[1736975599779,0.08674837,99787.0,99786.0,0.09042361]
[1736975600927,0.001,99787.0,99786.0,0.09042361]
[1736975604575,0.08674837,99787.0,99786.0,0.09042361]
[1736975605464,0.08674837,99787.0,99786.0,0.01282361]
[1736975606102,0.08674837,99787.0,99786.0,0.01382361]
[1736975606464,0.21384837,99787.0,99786.0,0.00229821]
[1736975607271,0.41427437,99787.0,99786.0,0.00229821]
[1736975610314,0.41327437,99787.0,99786.0,0.00229821]
[1736975610755,0.41627437,99787.0,99786.0,0.00229821]
[1736975610949,0.21584837,99787.0,99786.0,0.00229821]
[1736975612428,0.21684837,99787.0,99786.0,0.00229821]
[1736975612628,0.21384837,99787.0,99786.0,0.00229821]
[1736975613005,0.21584837,99787.0,99786.0,0.00229821]
[1736975613212,0.21684837,99787.0,99786.0,0.00229821]
[1736975613731,0.21584837,99787.0,99786.0,0.00229821]
[1736975613904,0.21284837,99787.0,99786.0,0.00229821]
[1736975614088,0.22010126,99787.0,99786.0,0.00229821]
[1736975614288,0.21884837,99787.0,99786.0,0.00229821]
[1736975615656,0.21284837,99787.0,99786.0,0.00229821]
[1736975615985,0.22010126,99787.0,99786.0,0.00229821]
[1736975616196,0.09174837,99787.0,99786.0,0.00229821]
[1736975616414,0.006,99787.0,99786.0,0.00229821]
[1736975616609,0.006,99787.0,99786.0,0.02257203]
[1736975617060,0.006,99787.0,99786.0,0.10577203]
[1736975617268,0.08574837,99797.0,99792.0,0.200416]
[1736975617439,0.0008549,99809.0,99792.0,0.10422692]
[1736975617683,0.01549448,99805.0,99804.0,0.200392]
[1736975617886,0.01549448,99805.0,99804.0,0.21636236]
[1736975619065,0.0008549,99809.0,99804.0,0.21636236]
[1736975619066,0.01549448,99808.0,99804.0,0.21636236]
[1736975619280,0.002,99805.0,99804.0,0.21636236]
[1736975619680,0.006,99805.0,99804.0,0.21636236]
[1736975619886,0.01549448,99808.0,99804.0,0.21636236]
[1736975620086,0.01549448,99808.0,99805.0,0.02027382]
[1736975620387,0.08574837,99806.0,99805.0,0.02027382]
[1736975620587,0.01949448,99808.0,99806.0,0.200388]
[1736975620948,0.08574837,99807.0,99806.0,0.200388]
[1736975622354,0.08774837,99807.0,99806.0,0.200388]
[1736975622555,0.08874837,99807.0,99806.0,0.01597036]
[1736975622751,0.08674837,99807.0,99806.0,0.01597036]
[1736975622955,0.08974837,99807.0,99804.0,0.2104899]
[1736975623362,0.08574837,99805.0,99804.0,0.2104899]
[1736975625675,0.08674837,99805.0,99804.0,0.2104899]
[1736975625867,0.09074837,99805.0,99804.0,0.2104899]
[1736975631338,0.005,99805.0,99804.0,0.2104899]
[1736975631538,0.004,99807.0,99806.0,0.350388]
[1736975631745,0.004,99807.0,99806.0,0.55531492]
[1736975632154,0.0008549,99809.0,99808.0,0.350384]
[1736975632394,0.0008549,99809.0,99808.0,0.55531092]
[1736975632568,0.0007328,99816.0,99809.0,0.15]
[1736975632775,0.0007328,99816.0,99815.0,0.35037]
[1736975632952,0.0007328,99816.0,99815.0,0.53845692]
[1736975634240,0.0007328,99816.0,99815.0,0.53229692]
[1736975634555,0.0007328,99816.0,99815.0,0.53845692]
[1736975634757,0.0007328,99816.0,99815.0,0.53229692]
[1736975635221,0.0007328,99816.0,99815.0,0.53529692]
[1736975635715,0.0007328,99816.0,99815.0,0.53629692]
[1736975638600,0.0007328,99816.0,99815.0,0.55625216]
[1736975639212,0.0007328,99816.0,99815.0,0.5664402]
[1736975640429,0.0007328,99816.0,99815.0,0.54648496]
[1736975643796,0.0007328,99816.0,99815.0,0.54348496]
[1736975644183,0.0007328,99816.0,99815.0,0.54248496]
[1736975644391,0.0007328,99816.0,99815.0,0.54848496]
[1736975644541,0.0007328,99816.0,99815.0,0.54548496]
[1736975644745,0.0007328,99816.0,99815.0,0.54748496]
[1736975645064,0.0007328,99816.0,99815.0,0.54448496]
[1736975645470,0.0007328,99816.0,99815.0,0.54548496]
[1736975652466,8e-07,99816.0,99815.0,0.61418496]
[1736975653544,8e-07,99816.0,99815.0,0.61118496]
[1736975653927,8e-07,99816.0,99815.0,0.62018496]
[1736975654370,8e-07,99816.0,99815.0,0.61718496]
[1736975654795,8e-07,99816.0,99815.0,0.62018496]
[1736975656180,8e-07,99816.0,99815.0,0.44725804]
[1736975657463,8e-07,99816.0,99815.0,0.36955804]
[1736975659797,8e-07,99816.0,99815.0,0.21955804]
[1736975662713,0.00626217,99816.0,99815.0,0.21955804]
[1736975666522,8e-07,99816.0,99815.0,0.21955804]
[1736975668398,8e-07,99816.0,99815.0,0.22135333]
[1736975668582,0.08574917,99816.0,99815.0,0.22135333]
[1736975669141,0.0357006,99836.0,99819.0,0.200361]
[1736975669341,0.10494072,99835.0,99819.0,0.200361]
[1736975669549,0.00072504,99820.0,99819.0,0.200361]
[1736975670378,0.00072504,99820.0,99819.0,0.202361]
[1736975671122,0.00072504,99820.0,99816.0,0.200368]
[1736975671424,0.10494072,99835.0,99820.0,0.20036]
[1736975671623,0.10509148,99835.0,99820.0,0.20036]
[1736975671821,0.00072496,99821.0,99820.0,0.20036]
[1736975672830,0.00072496,99821.0,99820.0,0.20436]
[1736975673196,0.00072496,99821.0,99820.0,0.20036]
[1736975674427,0.00072496,99821.0,99820.0,0.20136]
[1736975676035,0.00072496,99821.0,99820.0,0.001]
[1736975677868,0.00072496,99821.0,99815.0,0.00179529]
[1736975678023,0.375843,99829.0,99815.0,0.00179529]
[1736975678024,0.00072496,99817.0,99815.0,0.00179529]
[1736975678605,0.00072496,99817.0,99816.0,0.200368]
[1736975686946,0.00072496,99817.0,99815.0,0.00179529]
[1736975688062,0.00072496,99817.0,99816.0,0.02039706]
[1736975689342,0.00072496,99817.0,99815.0,0.00179529]
[1736975689558,0.00072496,99817.0,99815.0,0.00081829]
[1736975690363,0.00172496,99817.0,99815.0,0.00081829]
[1736975690787,0.00072496,99817.0,99815.0,0.00081829]
[1736975691613,0.00072496,99817.0,99816.0,0.00179487]
[1736975691770,0.00072496,99817.0,99816.0,0.02227372]
[1736975692375,0.01622942,99817.0,99816.0,0.02227372]
[1736975692991,0.01722942,99817.0,99816.0,0.00179487]
[1736975696853,0.01794322,99817.0,99816.0,0.00179487]
[1736975697056,0.42253614,99817.0,99816.0,0.00179487]
[1736975697271,0.45286272,99817.0,99816.0,0.00179487]
[1736975697471,0.42182234,99817.0,99816.0,0.00179487]
[1736975698818,0.40559292,99817.0,99816.0,0.00179487]
[1736975699002,0.40631791,99817.0,99816.0,0.00179487]
[1736975700967,0.45411791,99817.0,99816.0,0.00179487]
[1736975701164,0.48514487,99817.0,99816.0,0.00179487]
[1736975701593,0.45411791,99817.0,99816.0,0.00179487]
[1736975701813,0.45311791,99817.0,99816.0,0.00179487]
[1736975702140,0.58415095,99817.0,99816.0,0.00179487]
[1736975702352,0.55511791,99817.0,99816.0,0.00179487]
[1736975702555,0.58614502,99817.0,99816.0,0.00179487]
[1736975702775,0.55511791,99817.0,99816.0,0.00179487]
[1736975703332,0.55311791,99817.0,99816.0,0.00179487]
[1736975703536,0.55511791,99817.0,99816.0,0.00179487]
[1736975703672,0.55611791,99817.0,99816.0,0.00179487]
[1736975703870,0.55511791,99817.0,99816.0,0.00179487]
[1736975704362,0.55711791,99817.0,99816.0,0.00179487]
[1736975704763,0.55311791,99817.0,99816.0,0.00179487]
[1736975705170,0.55711791,99817.0,99816.0,0.00179487]
[1736975705550,0.56558586,99817.0,99816.0,0.00179487]
[1736975705760,0.56358586,99817.0,99816.0,0.00179487]
[1736975705970,0.56658586,99817.0,99816.0,0.00179487]
[1736975706753,0.55611791,99817.0,99816.0,0.00179487]
[1736975707323,0.55711791,99817.0,99816.0,0.00179487]
[1736975709907,0.56758586,99817.0,99816.0,0.00179487]
[1736975712203,0.46758586,99817.0,99816.0,0.00179487]
[1736975712426,0.56758586,99817.0,99816.0,0.00179487]
[1736975714437,0.56844096,99817.0,99816.0,0.00179487]
[1736975721284,0.46844096,99817.0,99816.0,0.00179487]
[1736975723278,0.12027496,99817.0,99816.0,0.00179487]
[1736975723505,0.01604804,99817.0,99816.0,0.08149487]
[1736975723669,0.01604804,99817.0,99816.0,0.12979487]
[1736975723824,0.00558009,99817.0,99816.0,0.12979487]
[1736975724274,0.00258009,99817.0,99816.0,0.12979487]
[1736975724506,0.00158009,99817.0,99816.0,0.12979487]
[1736975724888,0.00258009,99817.0,99816.0,0.12979487]
[1736975725542,0.00258009,99817.0,99816.0,0.1398535]
[1736975726149,0.00158009,99817.0,99816.0,0.1398535]
[1736975726359,0.00158009,99817.0,99816.0,0.1408535]
[1736975726703,0.00158009,99817.0,99816.0,0.1398535]
[1736975728143,0.00158009,99817.0,99816.0,0.12979487]
[1736975728570,0.00158009,99817.0,99816.0,0.08149487]
[1736975728769,0.00158009,99817.0,99816.0,0.09888274]
[1736975729010,0.00158009,99817.0,99816.0,0.08149487]
[1736975729861,0.00258009,99817.0,99816.0,0.08149487]
[1736975730058,0.00158009,99817.0,99816.0,0.08149487]
[1736975730262,0.00258009,99817.0,99816.0,0.08149487]
[1736975730459,0.00358009,99817.0,99816.0,0.08149487]
[1736975731907,0.00258009,99817.0,99816.0,0.08149487]
[1736975732414,0.00358009,99817.0,99816.0,0.08149487]
[1736975732616,0.00258009,99817.0,99816.0,0.08149487]
[1736975733137,0.00358009,99817.0,99816.0,0.08149487]
[1736975733339,0.00258009,99817.0,99816.0,0.08149487]
[1736975733600,0.00358009,99817.0,99816.0,0.08149487]
[1736975733830,0.00258009,99817.0,99816.0,0.08149487]
[1736975734177,0.00358009,99817.0,99816.0,0.08149487]
[1736975734463,0.00258009,99817.0,99816.0,0.08149487]
[1736975734629,0.00158009,99817.0,99816.0,0.12869487]
[1736975735058,0.00258009,99817.0,99816.0,0.12869487]
[1736975735418,0.00158009,99817.0,99816.0,0.12869487]
[1736975745859,0.00158009,99817.0,99816.0,0.12969487]
[1736975746289,0.00158009,99817.0,99816.0,0.12869487]
[1736975746627,0.00158009,99817.0,99816.0,0.13269487]
[1736975746854,0.00158009,99817.0,99816.0,0.12969487]
[1736975747276,0.00158009,99817.0,99816.0,0.13169487]
[1736975749369,0.00158009,99817.0,99816.0,0.13213487]
[1736975757357,0.00158009,99817.0,99816.0,0.08493487]
[1736975759584,0.00158009,99817.0,99816.0,0.08293487]
[1736975759761,0.00158009,99817.0,99816.0,0.08393487]
[1736975760148,0.00158009,99817.0,99816.0,0.08293487]
[1736975760348,0.00158009,99817.0,99816.0,0.08393487]
[1736975760957,0.00158009,99817.0,99816.0,0.08293487]
[1736975761249,0.00158009,99817.0,99816.0,0.08193487]
[1736975761465,0.00158009,99817.0,99816.0,0.08393487]
[1736975761636,0.00158009,99817.0,99816.0,0.00423487]
[1736975761810,0.00158009,99817.0,99816.0,0.00323487]
[1736975762618,0.00158009,99817.0,99816.0,0.00223487]
[1736975762817,0.00158009,99817.0,99811.0,0.20848979]
[1736975763074,0.00158009,99817.0,99813.0,0.200374]
[1736975764044,0.01557366,99816.0,99813.0,0.200374]
[1736975764631,0.01557366,99816.0,99813.0,0.201374]
[1736975764834,0.01557366,99816.0,99813.0,0.401748]
[1736975765256,0.01557366,99816.0,99813.0,0.402748]
[1736975765462,0.01557366,99816.0,99815.0,0.20037]
[1736975765663,0.00158009,99817.0,99815.0,0.20037]
[1736975766592,0.02183588,99816.0,99815.0,0.20037]
[1736975767619,0.02183588,99816.0,99815.0,0.20137]
[1736975767820,0.00626222,99816.0,99815.0,0.20037]
[1736975769188,0.00626222,99816.0,99815.0,0.20137]
[1736975771384,0.00626222,99816.0,99815.0,0.27637]
[1736975772251,0.00626222,99816.0,99815.0,0.27737]
[1736975772651,0.00626222,99816.0,99815.0,0.41207416]
[1736975773463,0.00626222,99816.0,99815.0,0.27737]
[1736975773910,0.00626222,99816.0,99815.0,0.27637]
[1736975775093,0.00626222,99816.0,99815.0,0.41107416]
[1736975776146,0.00626222,99816.0,99815.0,0.27637]
[1736975780050,0.00626222,99816.0,99815.0,0.45597555]
[1736975780893,0.00626222,99816.0,99815.0,0.50087694]
[1736975782055,0.00626222,99816.0,99815.0,0.27637]
[1736975783037,0.00626222,99816.0,99815.0,0.45647823]
[1736975783668,0.00626222,99816.0,99815.0,0.27637]